Cogmind - Beta 16 @@@ ROGUE MODE // 2026.02.04 @ 23:58:36 Player: naththebg Result: Destroyed by Y9-4SI(R) with Subdweller Beam Cannon Performance ------------- Evolutions (0) 0 Regions Visited (2) 400 Robots Destroyed (12) 60 Value Destroyed (446) 446 Prototype IDs (12) 240 Alien Tech Used (0) 0 Bonus (-52) -52 TOTAL SCORE: 1094 Bonus ------- Friendly Fire -52 Cogmind --------- Core Integrity 0/250 Matter 255/300 Energy 159/170 System Corruption 0% Temperature Hot (210) Movement Treading (160) Location -10/Subcaves Parts ------- > --- POWER (1) -------- Makeshift Power Source > --- PROPULSION (2) --- Light Treads Spiked Treads > --- UTILITY (2) ------ Large Storage Unit Visual Processing Unit > --- WEAPON (2) ------- Medium Laser Light Assault Rifle > --- INVENTORY (15) --- Subdweller Power Source Subdweller Power Source Subdweller Power Source Arachnoskeleton Wheel Compact Wheel Subdweller Monowheel Disposable Heat Sink Small Storage Unit High-capacity Matter Pod (109) Subdweller Optics Subdweller Machine Gun Peak State ------------ > --- POWER ------------ Makeshift Power Source > --- PROPULSION ------- Light Treads Light Treads > --- UTILITY ---------- Large Storage Unit Visual Processing Unit > --- WEAPON ----------- Subdweller Machine Gun Barrage Gun > --- INVENTORY -------- Subdweller Power Source Spiked Treads Arachnoskeleton Wheel Compact Wheel Subdweller Monowheel Disposable Heat Sink Disposable Heat Sink Small Storage Unit High-capacity Matter Pod Subdweller Optics Medium Laser Light Assault Rifle [Rating: 17] Favorites ----------- Power Makeshift Power Source Engine Makeshift Power Source Propulsion Light Treads Treads Light Treads Leg Aluminum Leg Utility Visual Processing Unit Storage Large Storage Unit Processor Visual Processing Unit Weapon Medium Laser Energy Gun Medium Laser Ballistic Gun Barrage Gun Build | -11 -10 -10 ------- Run | Yrd Mat Sub Slots Evolved . | . . . Power . | . . . Propulsion . | . . . Utility . | . . . Weapon . | . . . Parts Attached 18 | 4 3 11 Power 4 | 1 . 3 Engine 4 | 1 . 3 Core . | . . . Reactor . | . . . Propulsion 5 | 2 . 3 Treads 3 | . . 3 Leg 2 | 2 . . Wheel . | . . . Hover . | . . . Flight . | . . . Utility 3 | 1 1 1 Device . | . . . Storage 2 | 1 . 1 Processor 1 | . 1 . Hackware . | . . . Protection . | . . . Artifact . | . . . Weapon 6 | . 2 4 Energy Gun 3 | . 2 1 Energy Cannon . | . . . Ballistic Gun 3 | . . 3 Ballistic Cannon . | . . . Launcher . | . . . Special Weapon . | . . . Impact Weapon . | . . . Slashing Weapon . | . . . Piercing Weapon . | . . . Special Melee Weapon . | . . . Unidentified Prototypes . | . . . Parts Lost 6 | . . 6 Power 2 | . . 2 Propulsion 1 | . . 1 Utility . | . . . Weapon 3 | . . 3 Highest Loss Streak 3 | . . 3 To Critical Strikes . | . . . Average Backups 11 | 4 6 11 Power 1 | . 1 1 Propulsion 4 | 1 4 5 Utility 3 | . . 4 Weapon 1 | 2 1 1 Tool/Special . | . . . Unused Backups 10 | . . 10 Power 2 | . . 2 Propulsion 4 | . . 4 Utility 4 | . . 4 Weapon . | . . . Tool/Special . | . . . Average Slot Usage (%) 99 | . 92 99 Engine 13 | . 14 13 Treads 24 | . . 27 Leg 3 | . 28 . Storage 14 | . 14 14 Processor 13 | . 11 14 Energy Gun 16 | . 23 15 Ballistic Gun 11 | . . 12 Peak Build Rating 17 | 4 8 17 Average Rating 13 | 2 7 14 On Entrance 4 | . 4 8 Avg Prop Armor Cover (%) . | . . . Naked Turns . | . . . Heaviest Build 31 | 8 11 31 Greatest Support 40 | 20 20 40 Greatest Overweight (x) . | . . . Average Overweight (x) . | . . . Largest Inventory Capacity 15 | 8 8 15 Average Capacity 12 | 7 8 13 Most Carried 15 | 8 8 15 Average Carried 12 | 5 6 13 Final Capacity 15 | 8 8 15 Final Carried 14 | 8 8 14 Class Distribution -------------------- 100% | Mutant Dominant Class ---------------- Mutant | -10/Materials Mutant | -10/Subcaves Resources | -11 -10 -10 ----------- Run | Yrd Mat Sub Matter Collected 844 | 240 77 527 Remotely . | . . . Salvage Created 611 | . 309 302 Parts 32 | . 14 18 Haulers Intercepted . | . . . Recyclers Shooed . | . . . Parts Field Recycled . | . . . Retrieved Matter . | . . . Parts Self-Destructed 12 | . . 12 Prevented . | . . . Parts Restored . | . . . Kills | -11 -10 -10 ------- Run | Yrd Mat Sub Combat Hostiles Destroyed 11 | . 6 5 Guns 11 | . 6 5 Classes Destroyed 4 | . 2 2 Watcher 1 | . 1 . Grunt 6 | . 6 . Artisan 3 | . . 3 Subdweller 5 | . . 5 Best Kill Streak 3 | . 3 2 Combat Bots Only 3 | . 3 2 Max Kills in Single Turn 1 | . 1 1 Gunslinging . | . . . Exploded . | . . . Melee . | . . . Uniques/NPCs Destroyed . | . . . Combat | -11 -10 -10 -------- Run | Yrd Mat Sub Hostile Shots Fired 80 | . 30 50 Missed 18 | . 7 11 Hits 62 | . 23 39 Projectile 62 | . 23 39 Critical Strikes 1 | . . 1 Damage Taken 1218 | . 297 921 Core 252 | . 23 229 Absorbed by Shields . | . . . Core Remaining (%) 100 | 100 . . Volleys Fired 252 | . 25 227 Largest 2 | . 2 2 Hottest 115 | . 90 115 Shots Fired 308 | . 50 258 Gun 308 | . 50 258 Cannon . | . . . Launcher . | . . . Special . | . . . Kinetic 187 | . . 187 Thermal 121 | . 50 71 Explosive . | . . . Electromagnetic . | . . . Robot Hit Streak 31 | . 15 31 Robot Miss Streak 3 | . 2 3 Penetration Max . | . . . Secondary Targets 1 | . 1 . Max Gunslinging Chain 1 | . 1 . Shots Hit Robots 94 | . 39 55 Core Hits 33 | . 17 16 Critical Kills . | . . . Critical Parts Destroyed . | . . . Critical Strikes 9 | . 4 5 Burn 8 | . 4 4 Destroy 1 | . . 1 Melee Attacks . | . . . Impact . | . . . Slashing . | . . . Piercing . | . . . Sneak Attacks . | . . . Combat Hostiles . | . . . Follow-up Attacks . | . . . Damage Inflicted 1139 | . 465 674 Guns 1139 | . 465 674 Cannons . | . . . Explosions . | . . . Melee . | . . . Ramming . | . . . Kinetic 244 | . . 244 Thermal 895 | . 465 430 Explosive . | . . . Electromagnetic . | . . . Impact . | . . . Slashing . | . . . Piercing . | . . . Highest Corruption . | . . . Average Corruption . | . . . Corruption Purged . | . . . Corruption Blocked . | . . . Overload Shots . | . . . Overflow Damage . | . . . Projectiles . | . . . Explosions . | . . . Melee . | . . . Knockbacks . | . . . Impact . | . . . Kinetic . | . . . Secondary . | . . . Self-Inflicted Damage . | . . . Shots . | . . . Rammed . | . . . Targets Rammed . | . . . Kicked . | . . . Crushed . | . . . Highest Temperature 236 | . 202 236 Average Temperature 63 | . 75 20 Received Heat Transfer 635 | . 165 470 Siege Activations . | . . . Martial Activations . | . . . Shielding Activations . | . . . Robots Disrupted . | . . . Combat Hostiles . | . . . Robots Corrupted . | . . . Combat Hostiles . | . . . Parts Fried . | . . . Impact Corruptions . | . . . Robots Melted . | . . . Combat Hostiles . | . . . Parts Melted 6 | . 4 2 Heat Transferred 3077 | . 1535 1542 Parts Sabotaged . | . . . Parts Stolen . | . . . Parts Stripped . | . . . Power Chain Reactions . | . . . Alert | -11 -10 -10 ------- Run | Yrd Mat Sub Maximum Alert Level . | . . . Low Security (%) 100 | 100 100 . Level 1 . | . . . Level 2 . | . . . Level 3 . | . . . Level 4 . | . . . Level 5 . | . . . High Security . | . . . Max Security . | . . . Peak Influence 85 | . 85 . Initial . | . . . Average 28 | . 32 . Influence Increases 172 | . 172 . Destroy 0b10 Robot/C 120 | . 120 . Destroy 0b10 Robot/NC 5 | . 5 . Destroy Leader 32 | . 32 . Lose Combat Pursuer 15 | . 15 . Influence Decreases 172 | . 167 5 Entered New Map 3 | . . 3 Time Decay 169 | . 167 2 Squads Dispatched 1 | . 1 . Investigation . | . . . Extermination . | . . . Reinforcement 1 | . 1 . Assault . | . . . Garrison . | . . . Intercept . | . . . Searches Triggered . | . . . Construction Impeded . | . . . Haulers Reinforced . | . . . Active Scanning Responses . | . . . Cargo Convoy Interrupts . | . . . Stealth | -11 -10 -10 --------- Run | Yrd Mat Sub Distress Signals 1 | . 1 . Communications Jammed . | . . . Distress Signals . | . . . Times Spotted 16 | . 9 7 Peak Tracking Total 3 | . 3 2 Tactical Retreats 1 | . 1 . Traps | -11 -10 -10 ------- Run | Yrd Mat Sub Traps Triggered 1 | . . 1 Indirectly . | . . . Trap Hack Attempts . | . . . Triggered . | . . . Disarmed . | . . . Reprogrammed . | . . . Reused . | . . . Traps Extracted . | . . . Installed . | . . . Triggered . | . . . Machines | -11 -10 -10 ---------- Run | Yrd Mat Sub Machines Disabled 1 | . . 1 Max in Single Turn 1 | . . 1 Machines Repaired . | . . . Machines Dismantled . | . . . Machines Sabotaged . | . . . Overloaded Fab Kills . | . . . Hacking | -11 -10 -10 --------- Run | Yrd Mat Sub Machines Accessed 4 | . 2 2 Terminals 1 | . 1 . Fabricators . | . . . Repair Stations . | . . . Recycling Units 1 | . 1 . Scanalyzers . | . . . Garrison Access . | . . . Total Hacks 16 | . 3 13 Successful 14 | . 1 13 Failed 2 | . 2 . Catastrophic . | . . . Database Lockouts . | . . . Manual 2 | . 2 . Terminals 2 | . 2 . Fabricators . | . . . Repair Stations . | . . . Recycling Units 1 | . 1 . Scanalyzers . | . . . Garrison Access . | . . . Terminal Hacks 13 | . . 13 Record 12 | . . 12 Proto ID Catalog 1 | . . 1 Fabricator Hacks . | . . . Repair Station Hacks . | . . . Recycling Unit Hacks 1 | . 1 . Retrieve Components 1 | . 1 . Scanalyzer . | . . . Garrison Access Hacks . | . . . Unauthorized Hacks . | . . . Terminals . | . . . Fabricators . | . . . Repair Stations . | . . . Recycling Units . | . . . Scanalyzers . | . . . Garrison Access . | . . . Data Cores Recovered . | . . . Used . | . . . Hacking Detections 1 | . 1 . Full Trace Events . | . . . Feedback Events . | . . . Feedback Blocked . | . . . Robot Schematics Acquired . | . . . Robots Built . | . . . Authchips . | . . . Time . | . . . Total Robot Build Rating . | . . . Part Schematics Acquired . | . . . Parts Built . | . . . Authchips . | . . . Time . | . . . Total Part Build Rating . | . . . Part Studies Acquired . | . . . Parts Repaired . | . . . Time . | . . . Parts Recycled . | . . . Recycled Matter . | . . . Retrieved Matter . | . . . Retrieved Components 1 | . 1 . Parts Scanalyzed . | . . . Part Schematics Acquired . | . . . Parts Damaged . | . . . Bothacking | -11 -10 -10 ------------ Run | Yrd Mat Sub Used RIF Installer . | . . . Robots Hacked . | . . . Non-combat . | . . . Combat . | . . . Robot Hacks Applied . | . . . Relay Couplers Released . | . . . Fabnet Peak Effective % . | . . . Robots Rewired . | . . . Allies Hacked . | . . . Hacks Repelled . | . . . Allies | -11 -10 -10 -------- Run | Yrd Mat Sub Total Allies . | . . . Largest Group . | . . . Highest-Rated Group . | . . . Highest-Rated Ally . | . . . Total Orders . | . . . Ally Attacks . | . . . Total Damage . | . . . Kills . | . . . Allies Corrupted . | . . . Allies Melted . | . . . Intel | -11 -10 -10 ------- Run | Yrd Mat Sub Active Infowar (turns) 3582 | . 321 3261 Optics 3582 | . 321 3261 Robot Analysis Total . | . . . Derelict Logs Recovered 1 | . . 1 Drone Launches . | . . . Drone Recoveries . | . . . Exploration | -11 -10 -10 ------------- Run | Yrd Mat Sub Turns Passed 3719 | 64 394 3261 Spaces Moved 1983 | 54 240 1689 Core 21 | 21 . . Treads 1684 | . . 1684 Legs 278 | 33 240 5 Wheels . | . . . Hover . | . . . Flight . | . . . Fastest Speed 50 | 50 120 120 Average Speed 153 | 92 120 159 Slowest Speed 160 | 120 120 160 Overloaded Moves . | . . . Propulsion Burnouts . | . . . Robots Hopped . | . . . Potential Cave-ins . | . . . Cave-ins Triggered . | . . . Exploration Rate (%) 33 | 3 45 52 Regions Visited 2 Branch Regions 1 Pre-discovered Areas 1 | . . 1 Known Exits Taken . | . . . Unknown Exits Taken 2 | 1 1 . Scrap Searched 2 | . . 2 Spaces Dug . | . . . Terrain Destroyed . | . . . Melee . | . . . Projectile . | . . . AOE . | . . . Terrain Rammed . | . . . Walls Destroyed . | . . . Machines Disabled . | . . . Actions | -11 -10 -10 --------- Run | Yrd Mat Sub Total 2387 | 67 295 2025 Wait 100 | . 26 74 Move 1981 | 53 239 1689 Hop . | . . . Pick Up 26 | 10 2 14 Fast Attach 5 | 2 1 2 Attach 8 | 2 2 4 Detach . | . . . Swap 8 | . . 8 Drop 7 | . . 7 Fire 252 | . 25 227 Melee . | . . . Ram . | . . . Kick . | . . . Crush . | . . . Escape Stasis . | . . . Rewire . | . . . Trap . | . . . Miscellaneous . | . . . Route ------- -11/Scrapyard -10/Materials (discovered 3 exits: [*Mat] / [*Min] / *Sub) -10/Subcaves (discovered 3 exits: *Mat x2 / Rec) History --------- Turn | Location | Event 35 | -11/Scrapyard | Discovered new exit (range 16) 65 | -11/Scrapyard | Entered Materials 110 | -10/Materials | Discovered new exit (range 12) 224 | -10/Materials | Discovered new exit (range 8) 311 | -10/Materials | Build established: Mutant 448 | -10/Materials | Discovered new exit (range 9) 459 | -10/Materials | Entered Subcaves 464 | -10/Subcaves | Learned Materials emergency access door positions 530 | -10/Subcaves | A swath of the cavern ceiling suddenly collapsed 678 | -10/Subcaves | Shifting Twisted Machinery released Mak. Flight Unit 782 | -10/Subcaves | Shifting Twisted Machinery released Spk. Treads 895 | -10/Subcaves | Discovered new exit (range 9) 1058 | -10/Subcaves | Core integrity fell below 50% 1092 | -10/Subcaves | Lost 3 parts (1p2w) 1270 | -10/Subcaves | Visited 4L-MR0's lab 1289 | -10/Subcaves | Found Arachnoskeleton 2316 | -10/Subcaves | Visited Clippyterm 2321 | -10/Subcaves | Identified exit to Recycling 2321 | -10/Subcaves | Identified exit to Materials 2321 | -10/Subcaves | Learned location of Section 7 (-2) 2703 | -10/Subcaves | Core integrity fell below 20% 3422 | -10/Subcaves | A swath of the cavern ceiling suddenly collapsed 3720 | -10/Subcaves | Destroyed by Y9-4SI(R) with Subdweller Beam Cannon Last Messages --------------- 03595_ Subatomizers dissect the Disposable Heat Sink. 03595_ Acquired 38 matter. 03598_ Dropped Sub. Power Source. 03598_ Acquired Sub. Power Source. 03603_ Dropped Disposable Heat Sink. 03607_ Acquired Sub. Power Source. 03610_ Subatomizers dissect the Disposable Heat Sink. 03668_ 8E-CKT(u) cries out in pain. 03668_ 8E-CKT(u) destroyed. 03672_ Acquired 22 matter. 03674_ BU-209(R) angrily emerges from the Twisted Machinery. 03674_ BU-209(R): "SUBHATE!" 03687_ Lgt. Treads destroyed. 03700_ BU-209(R) destroyed. 03703_ Y9-4SI(R): "ECOKILL!" 03703_ Acquired 49 matter. 03718_ Critical hit (Meltdown: +260). Map ----- +----------------------------------------------------+ | ?????????????????????????????????????????????????? | | ?????????????????????????????????????????????????? | | ?????????????????????????????????????????????????? | | ?????????????????????????????????????????????????? | | ?????????????????????????????????????????????????? | | ?????????????????????????????????????????????????? | | ?????????????????????????????????????????????????? | | ?????????????????????????????????????????????????? | | ?????????????????????????????????????????????????? | | ?????????????????????????????????????????????????? | | ?????????????????????????????????????????????????? | | ?????????????????????????##?###????????????####### | | ????????????????????????##"## ###??????##### # | | ????????????????????????# "" #???#### " | | ????????????????????????# ""< #?#### """ | | ????????????????????????#### ###"" "##" | | ???????????????????????????## "" " " ""##" # | | ????????????????????????###### """### ""# " ## | | ????????????????????????# #### #### ""# " ## | | ?????????????????????????# #?##="### "#### | | ?????????????????????????# ""### " ## ""#??#" | | ????????????????????????## " " *&"## "##?#"" | | ???????????????????????## "" * """ #?#""" | | ??????????????????????## # = """"###"" | | ??????????????????????# """" " "" | | ?????????????????????## @ ####""" "" | | ???????????????####### # ####?##""" "" | | ??????????????## # ## R## #####?## " | | ?????????????## " ## ### ### | | ?????????????# " ## ### ## !& | | ?????????????##= ######## &! | | ??????????????# ##??????# ## ### | | ??????????????# #??## ?### #### ##?# | | ??????????????# ###"" #?# ### #??## ## | | ?????????????## """"" #?#### ##?## ### | | ????????????## """" #???## ### #?# | | ????????????#" """" ##??## #?? | | ????????????#"" """" ###???# #?? | | ????????????##" ""####?????## ### | | ?????????????#"""##????####### #### # | | ?????????????# ""#?????# #### ### | | ?????????????# "##????# ### ##?# | | ?????????????# ""#????# #??# | | ?????????????## "##????# #??### | | ?????????????# "#####?# ##????## | | ?????????????## =## "### ##??????# | | ?????????????# ###??####### | | ?????????????# #??###"#"##" | | ?????????????## ## ######"#"#""# | | ??????????????# #### ## ## ##?#""""#""#"" | +----------------------------------------------------+ Best States ------------- Heat Dissipation 25 Energy Generation 15 Energy Capacity 200 Matter Stores 300 Matter Capacity 300 Sight Range 18 Terrain Scan Density 10 Evasion (%) 55 Recoil Reduction 2 Item Schematics ----------------- None Robot Schematics ------------------ None Fabricated ------------ Nothing Repaired ---------- Nothing Studied --------- None Alien Tech Used ----------------- None Achievements -------------- None Challenges ------------ None Game ------ Seed AdvancedMassStreamer Manual? 0 Play Time 00:17:00 Cumulative 454.9 hours Start 2026.02.04 @ 19:35:56 End 2026.02.04 @ 23:58:36 Sessions 3 Manual Loads 0 Difficulty Rogue Special Mode None Game No. 218 Rogue 218 Adventurer 0 Explorer 0 Win Type - Total 13 Types 9/0/2/0/0/0/0/1/0/1 Lore% 85 Gallery% 82 Achievement% 62 Wizard Run 0 Options --------- Layout 1 ASCII 0 Keyboard 0 Movement Mouse Keybinds 0 Fullscreen 1 Font 24/Smallcaps Map View 50x35 Zoom Use 0% Tactical HUD 1 Map Filters NONE Filters NONE Steam 1 RUN: 99208a57-eb2b-4d85-87a3-5d7c693e9745